[Event "Titled Tuesday Blitz August 15 Early 2023"]
[White "Terry, Renato"]
[Black "Kushko, Dmitriy"]
[WhiteFideId "3803457"]
[BlackFideId "14162261"]
[WhiteElo "2929"]
[BlackElo "2690"]
[Result "1-0"]
[Round "4"]
[TimeControl "180+1"]
[Date "2023.08.15"]
[WhiteClock "0:01:25"]
[BlackClock "0:01:03"]
[Board "21"]

1. d4 {[%clk 0:02:57]}  g6 {[%clk 0:03:00]} 2. Nf3 {[%clk 0:02:57]}  Bg7 {[%clk 0:03:00]} 3. c3 {[%clk 0:02:58]}  Nf6 {[%clk 0:03:00]} 4. Bg5 {[%clk 0:02:58]}  h6 {[%clk 0:03:00]} 5. Bh4 {[%clk 0:02:58]}  O-O {[%clk 0:03:00]} 6. Nbd2 {[%clk 0:02:58]}  d6 {[%clk 0:03:00]} 7. e4 {[%clk 0:02:58]}  Nc6 {[%clk 0:03:00]} 8. Bb5 {[%clk 0:02:57]}  Bd7 {[%clk 0:02:56]} 9. O-O {[%clk 0:02:57]}  a6 {[%clk 0:02:52]} 10. Ba4 {[%clk 0:02:56]}  b5 {[%clk 0:02:50]} 11. Bb3 {[%clk 0:02:56]}  g5 {[%clk 0:02:42]} 12. Bg3 {[%clk 0:02:55]}  Nh5 {[%clk 0:02:42]} 13. Re1 {[%clk 0:02:46]}  e6 {[%clk 0:02:41]} 14. Nf1 {[%clk 0:02:41]}  Na5 {[%clk 0:02:35]} 15. Bc2 {[%clk 0:02:41]}  f5 {[%clk 0:02:32]} 16. exf5 {[%clk 0:02:38]}  exf5 {[%clk 0:02:32]} 17. N3d2 {[%clk 0:02:38]}  Nf6 {[%clk 0:02:27]} 18. f4 {[%clk 0:02:38]}  Nd5 {[%clk 0:02:16]} 19. Qf3 {[%clk 0:02:23]}  c6 {[%clk 0:02:10]} 20. Ne3 {[%clk 0:02:18]}  g4 {[%clk 0:01:51]} 21. Qf2 {[%clk 0:02:18]}  Nxe3 {[%clk 0:01:46]} 22. Rxe3 {[%clk 0:02:19]}  d5 {[%clk 0:01:40]} 23. h3 {[%clk 0:02:00]}  Nb7 {[%clk 0:01:31]} 24. Bh4 {[%clk 0:01:57]}  Bf6 {[%clk 0:01:31]} 25. Bxf6 {[%clk 0:01:47]}  Qxf6 {[%clk 0:01:31]} 26. Rae1 {[%clk 0:01:44]}  Nd6 {[%clk 0:01:31]} 27. Re5 {[%clk 0:01:40]}  Nf7 {[%clk 0:01:23]} 28. Re7 {[%clk 0:01:33]}  Rad8 {[%clk 0:01:15]} 29. Nb3 {[%clk 0:01:30]}  Rfe8 {[%clk 0:01:03]} 30. Rxd7 {[%clk 0:01:25]} 1-0


[Site "https://www.chess.com"]

[Event "Titled Tuesday Blitz August 15 Early 2023"]
[White "Di Nicolantonio, Lucas"]
[Black "Kovalenko, Igor"]
[WhiteFideId "680460"]
[BlackFideId "14117908"]
[WhiteElo "2589"]
[BlackElo "2929"]
[Result "0-1"]
[Round "4"]
[TimeControl "180+1"]
[Date "2023.08.15"]
[WhiteClock "0:00:00"]
[BlackClock "0:00:45"]
[Board "22"]

1. Nf3 {[%clk 0:03:00]}  d5 {[%clk 0:02:58]} 2. e3 {[%clk 0:03:01]}  g6 {[%clk 0:02:56]} 3. c4 {[%clk 0:03:00]}  e6 {[%clk 0:02:55]} 4. d4 {[%clk 0:02:57]}  Bg7 {[%clk 0:02:55]} 5. Be2 {[%clk 0:02:57]}  Ne7 {[%clk 0:02:55]} 6. O-O {[%clk 0:02:58]}  O-O {[%clk 0:02:55]} 7. Nc3 {[%clk 0:02:58]}  b6 {[%clk 0:02:51]} 8. e4 {[%clk 0:02:51]}  dxe4 {[%clk 0:02:48]} 9. Nxe4 {[%clk 0:02:50]}  Nbc6 {[%clk 0:02:44]} 10. Bg5 {[%clk 0:02:37]}  f6 {[%clk 0:02:41]} 11. Be3 {[%clk 0:02:21]}  f5 {[%clk 0:02:41]} 12. Nc3 {[%clk 0:02:04]}  f4 {[%clk 0:02:41]} 13. Bc1 {[%clk 0:02:04]}  Nxd4 {[%clk 0:02:41]} 14. Nxd4 {[%clk 0:02:04]}  Qxd4 {[%clk 0:02:42]} 15. Bf3 {[%clk 0:01:59]}  Qxd1 {[%clk 0:02:37]} 16. Rxd1 {[%clk 0:01:59]}  Rb8 {[%clk 0:02:36]} 17. Nb5 {[%clk 0:01:52]}  Ba6 {[%clk 0:02:33]} 18. Bd2 {[%clk 0:01:32]}  Bxb2 {[%clk 0:02:29]} 19. Rab1 {[%clk 0:01:31]}  Bxb5 {[%clk 0:02:27]} 20. cxb5 {[%clk 0:01:30]}  Bg7 {[%clk 0:02:06]} 21. Bb4 {[%clk 0:01:28]}  Rf7 {[%clk 0:02:06]} 22. Rd7 {[%clk 0:01:15]}  Nf5 {[%clk 0:02:03]} 23. Rbd1 {[%clk 0:01:14]}  Be5 {[%clk 0:02:01]} 24. Rxf7 {[%clk 0:01:13]}  Kxf7 {[%clk 0:02:02]} 25. Rd7+ {[%clk 0:01:13]}  Kf6 {[%clk 0:02:01]} 26. g3 {[%clk 0:01:02]}  h5 {[%clk 0:01:59]} 27. Bc6 {[%clk 0:00:56]}  fxg3 {[%clk 0:01:54]} 28. hxg3 {[%clk 0:00:56]}  g5 {[%clk 0:01:49]} 29. Kg2 {[%clk 0:00:48]}  Rh8 {[%clk 0:01:49]} 30. a4 {[%clk 0:00:42]}  g4 {[%clk 0:01:47]} 31. a5 {[%clk 0:00:34]}  h4 {[%clk 0:01:43]} 32. gxh4 {[%clk 0:00:34]}  Nxh4+ {[%clk 0:01:43]} 33. Kf1 {[%clk 0:00:35]}  Nf3 {[%clk 0:01:37]} 34. Be4 {[%clk 0:00:20]}  Rh1+ {[%clk 0:01:34]} 35. Ke2 {[%clk 0:00:20]}  Bd6 {[%clk 0:01:30]} 36. Bxd6 {[%clk 0:00:13]}  Re1+ {[%clk 0:01:28]} 37. Kd3 {[%clk 0:00:11]}  cxd6 {[%clk 0:01:28]} 38. Bxf3 {[%clk 0:00:11]}  gxf3 {[%clk 0:01:28]} 39. a6 {[%clk 0:00:11]}  Re2 {[%clk 0:01:26]} 40. Rxa7 {[%clk 0:00:11]}  Rxf2 {[%clk 0:01:26]} 41. Ra8 {[%clk 0:00:11]}  Ke5 {[%clk 0:00:59]} 42. Ke3 {[%clk 0:00:08]}  Rf1 {[%clk 0:00:59]} 43. Rf8 {[%clk 0:00:07]}  Re1+ {[%clk 0:00:51]} 44. Kd2 {[%clk 0:00:05]}  Ra1 {[%clk 0:00:48]} 45. Rxf3 {[%clk 0:00:05]}  d5 {[%clk 0:00:48]} 46. Rc3 {[%clk 0:00:04]}  Kd4 {[%clk 0:00:47]} 47. Rc6 {[%clk 0:00:04]}  Ra2+ {[%clk 0:00:47]} 48. Kc1 {[%clk 0:00:05]}  e5 {[%clk 0:00:47]} 49. Rxb6 {[%clk 0:00:05]}  e4 {[%clk 0:00:47]} 50. Re6 {[%clk 0:00:03]}  Kc3 {[%clk 0:00:45]} 51. Kb1 {[%clk 0:00:03]}  Rb2+ {[%clk 0:00:44]} 52. Kc1 {[%clk 0:00:00]}  Rxb5 {[%clk 0:00:45]} 0-1


[Site "https://www.chess.com"]

[Event "Titled Tuesday Blitz August 15 Early 2023"]
[White "Kashefi, Amir Hosein"]
[Black "Perez Ponsa, Federico"]
[WhiteFideId "12557935"]
[BlackFideId "117927"]
[WhiteElo "2489"]
[BlackElo "2925"]
[Result "1-0"]
[Round "4"]
[TimeControl "180+1"]
[Date "2023.08.15"]
[WhiteClock "0:00:09"]
[BlackClock "0:00:03"]
[Board "24"]

1. d4 {[%clk 0:02:57]}  Nf6 {[%clk 0:02:58]} 2. Nf3 {[%clk 0:02:57]}  g6 {[%clk 0:02:58]} 3. g3 {[%clk 0:02:57]}  Bg7 {[%clk 0:02:59]} 4. Bg2 {[%clk 0:02:58]}  O-O {[%clk 0:02:58]} 5. O-O {[%clk 0:02:59]}  d6 {[%clk 0:02:58]} 6. b3 {[%clk 0:02:58]}  e5 {[%clk 0:02:58]} 7. dxe5 {[%clk 0:02:39]}  dxe5 {[%clk 0:02:59]} 8. Bb2 {[%clk 0:02:34]}  e4 {[%clk 0:02:38]} 9. Ng5 {[%clk 0:02:34]}  Qe7 {[%clk 0:02:36]} 10. Nc3 {[%clk 0:02:27]}  Bf5 {[%clk 0:02:34]} 11. h4 {[%clk 0:02:11]}  Rd8 {[%clk 0:02:30]} 12. Qc1 {[%clk 0:02:10]}  Nc6 {[%clk 0:02:23]} 13. Nd1 {[%clk 0:02:08]}  Nd4 {[%clk 0:02:16]} 14. Bxd4 {[%clk 0:02:08]}  Rxd4 {[%clk 0:02:17]} 15. c3 {[%clk 0:02:07]}  Rd6 {[%clk 0:02:11]} 16. Ne3 {[%clk 0:02:07]}  Rad8 {[%clk 0:01:59]} 17. Qa3 {[%clk 0:02:05]}  a6 {[%clk 0:01:56]} 18. Rad1 {[%clk 0:02:02]}  Bc8 {[%clk 0:01:53]} 19. Rxd6 {[%clk 0:01:59]}  Rxd6 {[%clk 0:01:53]} 20. Nc4 {[%clk 0:01:51]}  Rd7 {[%clk 0:01:42]} 21. Qxe7 {[%clk 0:01:49]}  Rxe7 {[%clk 0:01:43]} 22. Rd1 {[%clk 0:01:49]}  Re8 {[%clk 0:01:15]} 23. Nxe4 {[%clk 0:01:37]}  Nxe4 {[%clk 0:00:57]} 24. Bxe4 {[%clk 0:01:38]}  Rxe4 {[%clk 0:00:58]} 25. Rd8+ {[%clk 0:01:37]}  Bf8 {[%clk 0:00:58]} 26. Rxc8 {[%clk 0:01:38]}  b5 {[%clk 0:00:54]} 27. Ne3 {[%clk 0:01:35]}  c5 {[%clk 0:00:49]} 28. Kf1 {[%clk 0:01:33]}  Kg7 {[%clk 0:00:48]} 29. c4 {[%clk 0:01:33]}  Rd4 {[%clk 0:00:48]} 30. Ke1 {[%clk 0:01:30]}  Be7 {[%clk 0:00:44]} 31. Nd5 {[%clk 0:01:23]}  Bd6 {[%clk 0:00:39]} 32. Rc6 {[%clk 0:01:21]}  Bf8 {[%clk 0:00:36]} 33. e3 {[%clk 0:01:17]}  Re4 {[%clk 0:00:25]} 34. f3 {[%clk 0:01:17]}  Re8 {[%clk 0:00:07]} 35. Rxa6 {[%clk 0:01:16]}  bxc4 {[%clk 0:00:08]} 36. bxc4 {[%clk 0:01:17]}  Rb8 {[%clk 0:00:09]} 37. Rb6 {[%clk 0:01:17]}  Ra8 {[%clk 0:00:09]} 38. Rb2 {[%clk 0:01:17]}  Ra4 {[%clk 0:00:09]} 39. Rc2 {[%clk 0:01:17]}  Bd6 {[%clk 0:00:10]} 40. Kf2 {[%clk 0:01:16]}  h6 {[%clk 0:00:08]} 41. e4 {[%clk 0:01:14]}  Be5 {[%clk 0:00:08]} 42. Ke2 {[%clk 0:01:11]}  Ra3 {[%clk 0:00:07]} 43. Kf2 {[%clk 0:01:04]}  Bd4+ {[%clk 0:00:07]} 44. Kg2 {[%clk 0:01:04]}  Be5 {[%clk 0:00:08]} 45. f4 {[%clk 0:01:00]}  Bd4 {[%clk 0:00:08]} 46. e5 {[%clk 0:01:00]}  g5 {[%clk 0:00:08]} 47. hxg5 {[%clk 0:01:00]}  hxg5 {[%clk 0:00:09]} 48. Re2 {[%clk 0:00:50]}  gxf4 {[%clk 0:00:09]} 49. gxf4 {[%clk 0:00:51]}  Kg6 {[%clk 0:00:09]} 50. Ne7+ {[%clk 0:00:49]}  Kh5 {[%clk 0:00:09]} 51. f5 {[%clk 0:00:41]}  Kg4 {[%clk 0:00:05]} 52. Re4+ {[%clk 0:00:41]}  Kg5 {[%clk 0:00:04]} 53. e6 {[%clk 0:00:36]}  fxe6 {[%clk 0:00:03]} 54. fxe6 {[%clk 0:00:37]}  Rxa2+ {[%clk 0:00:04]} 55. Kf1 {[%clk 0:00:36]}  Ra8 {[%clk 0:00:04]} 56. Nd5 {[%clk 0:00:32]}  Kf5 {[%clk 0:00:04]} 57. Re1 {[%clk 0:00:28]}  Re8 {[%clk 0:00:03]} 58. e7 {[%clk 0:00:20]}  Bf6 {[%clk 0:00:03]} 59. Kg2 {[%clk 0:00:19]}  Bh4 {[%clk 0:00:04]} 60. Re2 {[%clk 0:00:10]}  Kg6 {[%clk 0:00:04]} 61. Kh3 {[%clk 0:00:10]}  Bg5 {[%clk 0:00:02]} 62. Kg4 {[%clk 0:00:10]}  Bf6 {[%clk 0:00:01]} 63. Re6 {[%clk 0:00:10]}  Kg7 {[%clk 0:00:02]} 64. Rxf6 {[%clk 0:00:10]}  Rxe7 {[%clk 0:00:03]} 65. Nxe7 {[%clk 0:00:09]}  Kxf6 {[%clk 0:00:03]} 66. Nc6 {[%clk 0:00:09]}  Ke6 {[%clk 0:00:03]} 67. Kf4 {[%clk 0:00:09]}  Kd6 {[%clk 0:00:03]} 68. Na5 {[%clk 0:00:09]} 1-0


[Site "https://www.chess.com"]

[Event "Titled Tuesday Blitz August 15 Early 2023"]
[White "Gan-Od, Sereenen"]
[Black "Fedoseev, Vladimir"]
[WhiteFideId "4901304"]
[BlackFideId "24130737"]
[WhiteElo "2774"]
[BlackElo "3101"]
[Result "0-1"]
[Round "4"]
[TimeControl "180+1"]
[Date "2023.08.15"]
[WhiteClock "0:00:04"]
[BlackClock "0:00:19"]
[Board "27"]

1. d4 {[%clk 0:03:00]}  Nf6 {[%clk 0:02:34]} 2. Nf3 {[%clk 0:03:00]}  g6 {[%clk 0:02:34]} 3. b3 {[%clk 0:03:00]}  Bg7 {[%clk 0:02:35]} 4. Bb2 {[%clk 0:03:00]}  O-O {[%clk 0:02:35]} 5. c4 {[%clk 0:03:01]}  c5 {[%clk 0:02:34]} 6. e3 {[%clk 0:02:59]}  d5 {[%clk 0:02:33]} 7. dxc5 {[%clk 0:02:58]}  Qa5+ {[%clk 0:02:32]} 8. Qd2 {[%clk 0:02:56]}  Qxc5 {[%clk 0:02:30]} 9. Nc3 {[%clk 0:02:53]}  dxc4 {[%clk 0:02:17]} 10. Bxc4 {[%clk 0:02:51]}  Nc6 {[%clk 0:02:17]} 11. O-O {[%clk 0:02:50]}  Rd8 {[%clk 0:02:18]} 12. Qe2 {[%clk 0:02:28]}  Bg4 {[%clk 0:02:18]} 13. Rad1 {[%clk 0:02:25]}  Qh5 {[%clk 0:02:11]} 14. h3 {[%clk 0:02:20]}  Bxf3 {[%clk 0:02:10]} 15. Qxf3 {[%clk 0:02:21]}  Qxf3 {[%clk 0:02:10]} 16. gxf3 {[%clk 0:02:21]}  a6 {[%clk 0:02:10]} 17. Kg2 {[%clk 0:02:08]}  Nd7 {[%clk 0:02:02]} 18. Ba1 {[%clk 0:02:03]}  Rac8 {[%clk 0:02:01]} 19. Nd5 {[%clk 0:01:56]}  Bxa1 {[%clk 0:01:59]} 20. Rxa1 {[%clk 0:01:51]}  Nde5 {[%clk 0:01:56]} 21. Nb6 {[%clk 0:01:47]}  Rc7 {[%clk 0:01:55]} 22. Rad1 {[%clk 0:01:45]}  e6 {[%clk 0:01:52]} 23. f4 {[%clk 0:01:44]}  Nd7 {[%clk 0:01:47]} 24. Nxd7 {[%clk 0:01:36]}  Rcxd7 {[%clk 0:01:48]} 25. Rxd7 {[%clk 0:01:34]}  Rxd7 {[%clk 0:01:49]} 26. Rc1 {[%clk 0:01:32]}  Ne7 {[%clk 0:01:44]} 27. Rc2 {[%clk 0:01:31]}  Kf8 {[%clk 0:01:32]} 28. b4 {[%clk 0:01:25]}  Rc7 {[%clk 0:01:30]} 29. Bb3 {[%clk 0:01:22]}  Rxc2 {[%clk 0:01:28]} 30. Bxc2 {[%clk 0:01:23]}  Nd5 {[%clk 0:01:28]} 31. a3 {[%clk 0:01:23]}  Ke7 {[%clk 0:01:29]} 32. Kf3 {[%clk 0:01:22]}  Kd6 {[%clk 0:01:29]} 33. Ke4 {[%clk 0:01:23]}  b6 {[%clk 0:01:23]} 34. Kd4 {[%clk 0:01:23]}  f6 {[%clk 0:01:22]} 35. Bd3 {[%clk 0:01:19]}  Nc7 {[%clk 0:01:14]} 36. Bc4 {[%clk 0:01:12]}  h6 {[%clk 0:01:01]} 37. Bd3 {[%clk 0:01:11]}  f5 {[%clk 0:00:59]} 38. Be2 {[%clk 0:01:08]}  b5 {[%clk 0:00:56]} 39. Bf3 {[%clk 0:01:06]}  g5 {[%clk 0:00:52]} 40. Bb7 {[%clk 0:01:02]}  g4 {[%clk 0:00:49]} 41. h4 {[%clk 0:00:59]}  h5 {[%clk 0:00:48]} 42. Bg2 {[%clk 0:00:50]}  Ne8 {[%clk 0:00:39]} 43. Bb7 {[%clk 0:00:47]}  Kc7 {[%clk 0:00:33]} 44. Bxa6 {[%clk 0:00:41]}  Nd6 {[%clk 0:00:29]} 45. Ke5 {[%clk 0:00:17]}  Kd7 {[%clk 0:00:28]} 46. Kf6 {[%clk 0:00:17]}  Ne4+ {[%clk 0:00:20]} 47. Kg6 {[%clk 0:00:17]}  Kc6 {[%clk 0:00:20]} 48. Bc8 {[%clk 0:00:10]}  Nxf2 {[%clk 0:00:20]} 49. Bxe6 {[%clk 0:00:10]}  g3 {[%clk 0:00:20]} 50. Bxf5 {[%clk 0:00:03]}  g2 {[%clk 0:00:20]} 51. Kxh5 {[%clk 0:00:04]}  g1=Q {[%clk 0:00:20]} 52. Be4+ {[%clk 0:00:04]}  Nxe4 {[%clk 0:00:19]} 0-1


[Site "https://www.chess.com"]

[Event "Titled Tuesday Blitz August 15 Early 2023"]
[White "Hoang, Thi Bao Tram"]
[Black "gmbenjaminbok"]
[WhiteFideId "12401102"]
[WhiteElo "2658"]
[BlackElo "2956"]
[Result "1-0"]
[Round "4"]
[TimeControl "180+1"]
[Date "2023.08.15"]
[WhiteClock "0:00:10"]
[BlackClock "0:00:04"]
[Board "30"]

1. Nf3 {[%clk 0:02:56]}  d5 {[%clk 0:02:58]} 2. g3 {[%clk 0:02:56]}  c6 {[%clk 0:02:58]} 3. Bg2 {[%clk 0:02:55]}  Bg4 {[%clk 0:02:58]} 4. O-O {[%clk 0:02:54]}  Nd7 {[%clk 0:02:59]} 5. h3 {[%clk 0:02:54]}  Bh5 {[%clk 0:02:59]} 6. c4 {[%clk 0:02:54]}  Bxf3 {[%clk 0:02:59]} 7. Bxf3 {[%clk 0:02:54]}  Ne5 {[%clk 0:02:59]} 8. c5 {[%clk 0:02:33]}  Nxf3+ {[%clk 0:02:56]} 9. exf3 {[%clk 0:02:34]}  e6 {[%clk 0:02:55]} 10. d4 {[%clk 0:02:34]}  Ne7 {[%clk 0:02:52]} 11. Bf4 {[%clk 0:02:20]}  Nf5 {[%clk 0:02:40]} 12. Nc3 {[%clk 0:02:08]}  Be7 {[%clk 0:02:40]} 13. Qd3 {[%clk 0:02:04]}  Bf6 {[%clk 0:02:35]} 14. Ne2 {[%clk 0:01:58]}  Qa5 {[%clk 0:02:21]} 15. Rfd1 {[%clk 0:01:48]}  O-O {[%clk 0:02:18]} 16. a3 {[%clk 0:01:39]}  b6 {[%clk 0:01:46]} 17. b4 {[%clk 0:01:34]}  Qa4 {[%clk 0:01:40]} 18. g4 {[%clk 0:01:14]}  Nh4 {[%clk 0:01:38]} 19. Bd6 {[%clk 0:01:09]}  Rfc8 {[%clk 0:01:30]} 20. Kh2 {[%clk 0:01:06]}  bxc5 {[%clk 0:01:17]} 21. bxc5 {[%clk 0:01:06]}  Qa5 {[%clk 0:01:07]} 22. f4 {[%clk 0:00:50]}  Bd8 {[%clk 0:01:02]} 23. Qg3 {[%clk 0:00:46]}  Ng6 {[%clk 0:01:00]} 24. f5 {[%clk 0:00:44]}  exf5 {[%clk 0:00:49]} 25. gxf5 {[%clk 0:00:44]}  Ne7 {[%clk 0:00:49]} 26. Qg4 {[%clk 0:00:36]}  Qa6 {[%clk 0:00:25]} 27. Ng3 {[%clk 0:00:29]}  Kh8 {[%clk 0:00:14]} 28. Nh5 {[%clk 0:00:20]}  g6 {[%clk 0:00:14]} 29. Be5+ {[%clk 0:00:18]}  Kg8 {[%clk 0:00:14]} 30. Nf6+ {[%clk 0:00:18]}  Kf8 {[%clk 0:00:13]} 31. Nxh7+ {[%clk 0:00:18]}  Ke8 {[%clk 0:00:13]} 32. Nf6+ {[%clk 0:00:18]}  Kf8 {[%clk 0:00:13]} 33. Qh4 {[%clk 0:00:18]}  Ng8 {[%clk 0:00:05]} 34. Qh8 {[%clk 0:00:12]}  Bxf6 {[%clk 0:00:04]} 35. Bxf6 {[%clk 0:00:13]}  Qe2 {[%clk 0:00:03]} 36. Qg7+ {[%clk 0:00:13]}  Ke8 {[%clk 0:00:03]} 37. Re1 {[%clk 0:00:13]}  Nxf6 {[%clk 0:00:03]} 38. Rxe2+ {[%clk 0:00:12]}  Ne4 {[%clk 0:00:03]} 39. f3 {[%clk 0:00:12]}  Kd7 {[%clk 0:00:03]} 40. fxe4 {[%clk 0:00:12]}  Kc7 {[%clk 0:00:03]} 41. exd5 {[%clk 0:00:12]}  cxd5 {[%clk 0:00:03]} 42. Qxf7+ {[%clk 0:00:11]}  Kc6 {[%clk 0:00:03]} 43. Rb1 {[%clk 0:00:09]}  Re8 {[%clk 0:00:02]} 44. Rxe8 {[%clk 0:00:09]}  Rxe8 {[%clk 0:00:03]} 45. Qxe8+ {[%clk 0:00:09]}  Kc7 {[%clk 0:00:04]} 46. Qe7+ {[%clk 0:00:09]}  Kc6 {[%clk 0:00:04]} 47. Qd6# {[%clk 0:00:10]} 1-0


[Site "https://www.chess.com"]

[Event "Titled Tuesday Blitz August 15 Early 2023"]
[White "Pert, Richard G"]
[Black "Chigaev, Maksim"]
[WhiteFideId "404748"]
[BlackFideId "4108116"]
[WhiteElo "2603"]
[BlackElo "2944"]
[Result "0-1"]
[Round "4"]
[TimeControl "180+1"]
[Date "2023.08.15"]
[WhiteClock "0:00:00"]
[BlackClock "0:00:11"]
[Board "31"]

1. d4 {[%clk 0:03:00]}  Nf6 {[%clk 0:02:59]} 2. Bg5 {[%clk 0:03:00]}  d5 {[%clk 0:02:57]} 3. e3 {[%clk 0:02:59]}  c5 {[%clk 0:02:57]} 4. Bxf6 {[%clk 0:02:58]}  gxf6 {[%clk 0:02:58]} 5. dxc5 {[%clk 0:02:58]}  Nc6 {[%clk 0:02:56]} 6. Bb5 {[%clk 0:02:57]}  e5 {[%clk 0:02:55]} 7. Nc3 {[%clk 0:02:45]}  Be6 {[%clk 0:02:53]} 8. Qf3 {[%clk 0:02:38]}  a6 {[%clk 0:02:27]} 9. Ba4 {[%clk 0:02:34]}  e4 {[%clk 0:02:23]} 10. Qh5 {[%clk 0:02:29]}  Bxc5 {[%clk 0:02:19]} 11. O-O-O {[%clk 0:02:27]}  Qa5 {[%clk 0:02:06]} 12. Bb3 {[%clk 0:02:14]}  O-O-O {[%clk 0:02:06]} 13. Nxd5 {[%clk 0:01:58]}  Nb4 {[%clk 0:01:56]} 14. Kb1 {[%clk 0:01:16]}  Bxd5 {[%clk 0:01:29]} 15. Rxd5 {[%clk 0:00:46]}  Nxd5 {[%clk 0:01:24]} 16. Ne2 {[%clk 0:00:38]}  Bxe3 {[%clk 0:01:03]} 17. Qh3+ {[%clk 0:00:24]}  Kb8 {[%clk 0:00:58]} 18. fxe3 {[%clk 0:00:24]}  Qd2 {[%clk 0:00:57]} 19. Nd4 {[%clk 0:00:18]}  Nxe3 {[%clk 0:00:42]} 20. c3 {[%clk 0:00:16]}  Qxg2 {[%clk 0:00:25]} 21. Qg3+ {[%clk 0:00:14]}  Qxg3 {[%clk 0:00:25]} 22. hxg3 {[%clk 0:00:15]}  h5 {[%clk 0:00:23]} 23. Re1 {[%clk 0:00:14]}  Rxd4 {[%clk 0:00:18]} 24. cxd4 {[%clk 0:00:14]}  Nf5 {[%clk 0:00:19]} 25. Rxe4 {[%clk 0:00:14]}  Nxg3 {[%clk 0:00:20]} 26. Rh4 {[%clk 0:00:13]}  Nf5 {[%clk 0:00:20]} 27. Rf4 {[%clk 0:00:13]}  Ne3 {[%clk 0:00:18]} 28. Rxf6 {[%clk 0:00:12]}  h4 {[%clk 0:00:17]} 29. Rf3 {[%clk 0:00:12]}  Ng2 {[%clk 0:00:14]} 30. Rh3 {[%clk 0:00:11]}  Nf4 {[%clk 0:00:14]} 31. Rh2 {[%clk 0:00:11]}  f6 {[%clk 0:00:14]} 32. Bd1 {[%clk 0:00:09]}  h3 {[%clk 0:00:14]} 33. Kc1 {[%clk 0:00:09]}  Rh4 {[%clk 0:00:14]} 34. Kd2 {[%clk 0:00:09]}  Kc7 {[%clk 0:00:15]} 35. Ke3 {[%clk 0:00:09]}  Kd6 {[%clk 0:00:16]} 36. Bf3 {[%clk 0:00:09]}  Nd5+ {[%clk 0:00:15]} 37. Kd3 {[%clk 0:00:08]}  Nb4+ {[%clk 0:00:14]} 38. Ke3 {[%clk 0:00:08]}  Nxa2 {[%clk 0:00:14]} 39. Be4 {[%clk 0:00:08]}  b6 {[%clk 0:00:13]} 40. Bf5 {[%clk 0:00:08]}  Rh5 {[%clk 0:00:10]} 41. Bg4 {[%clk 0:00:08]}  Rg5 {[%clk 0:00:11]} 42. Kf4 {[%clk 0:00:07]}  Nb4 {[%clk 0:00:10]} 43. Rxh3 {[%clk 0:00:07]}  Nd5+ {[%clk 0:00:10]} 44. Kf3 {[%clk 0:00:07]}  f5 {[%clk 0:00:07]} 45. Rh6+ {[%clk 0:00:05]}  Ke7 {[%clk 0:00:07]} 46. Bh5 {[%clk 0:00:06]}  Nf6 {[%clk 0:00:08]} 47. Bg6 {[%clk 0:00:05]}  Ke6 {[%clk 0:00:08]} 48. Kf4 {[%clk 0:00:05]}  Rg4+ {[%clk 0:00:08]} 49. Kf3 {[%clk 0:00:05]}  Rxd4 {[%clk 0:00:09]} 50. Bh7 {[%clk 0:00:06]}  Rd3+ {[%clk 0:00:08]} 51. Ke2 {[%clk 0:00:05]}  Rd8 {[%clk 0:00:09]} 52. Bg6 {[%clk 0:00:04]}  Ke5 {[%clk 0:00:08]} 53. Bh5 {[%clk 0:00:04]}  Nxh5 {[%clk 0:00:08]} 54. Rxh5 {[%clk 0:00:05]}  Rd4 {[%clk 0:00:08]} 55. Rh6 {[%clk 0:00:05]}  Rb4 {[%clk 0:00:09]} 56. Kd3 {[%clk 0:00:04]}  Rxb2 {[%clk 0:00:09]} 57. Rc6 {[%clk 0:00:04]}  Rb5 {[%clk 0:00:10]} 58. Rc7 {[%clk 0:00:04]}  a5 {[%clk 0:00:10]} 59. Re7+ {[%clk 0:00:04]}  Kf4 {[%clk 0:00:11]} 60. Re1 {[%clk 0:00:04]}  Rb4 {[%clk 0:00:11]} 61. Rf1+ {[%clk 0:00:03]}  Kg5 {[%clk 0:00:11]} 62. Kc3 {[%clk 0:00:00]}  f4 {[%clk 0:00:11]} 0-1


[Site "https://www.chess.com"]

[Event "Titled Tuesday Blitz August 15 Early 2023"]
[White "Nihal Sarin"]
[Black "Williams, Simon K"]
[WhiteFideId "25092340"]
[BlackFideId "404454"]
[WhiteElo "3135"]
[BlackElo "2549"]
[Result "1-0"]
[Round "4"]
[TimeControl "180+1"]
[Date "2023.08.15"]
[WhiteClock "0:01:30"]
[BlackClock "0:00:29"]
[Board "33"]

1. b3 {[%clk 0:02:56]}  e5 {[%clk 0:02:50]} 2. Bb2 {[%clk 0:02:54]}  e4 {[%clk 0:02:46]} 3. e3 {[%clk 0:02:53]}  d5 {[%clk 0:02:42]} 4. d3 {[%clk 0:02:53]}  Nf6 {[%clk 0:02:39]} 5. Nd2 {[%clk 0:02:53]}  Bf5 {[%clk 0:02:22]} 6. dxe4 {[%clk 0:02:35]}  Nxe4 {[%clk 0:02:19]} 7. Ne2 {[%clk 0:02:35]}  Bb4 {[%clk 0:02:13]} 8. c3 {[%clk 0:02:35]}  Be7 {[%clk 0:02:13]} 9. Ng3 {[%clk 0:02:34]}  Nxg3 {[%clk 0:02:10]} 10. hxg3 {[%clk 0:02:35]}  Nc6 {[%clk 0:02:07]} 11. Nf3 {[%clk 0:02:35]}  Bf6 {[%clk 0:02:05]} 12. Bd3 {[%clk 0:02:35]}  Qd7 {[%clk 0:02:04]} 13. Qc2 {[%clk 0:02:36]}  Bxd3 {[%clk 0:02:03]} 14. Qxd3 {[%clk 0:02:37]}  O-O-O {[%clk 0:02:04]} 15. O-O-O {[%clk 0:02:37]}  Qe6 {[%clk 0:01:58]} 16. Rxh7 {[%clk 0:02:33]}  Rxh7 {[%clk 0:01:52]} 17. Qxh7 {[%clk 0:02:34]}  Kb8 {[%clk 0:01:40]} 18. Qd3 {[%clk 0:02:35]}  a5 {[%clk 0:01:19]} 19. a4 {[%clk 0:02:23]}  d4 {[%clk 0:01:14]} 20. cxd4 {[%clk 0:02:07]}  Nb4 {[%clk 0:01:13]} 21. Qc4 {[%clk 0:02:08]}  Qf5 {[%clk 0:01:14]} 22. Ba3 {[%clk 0:02:08]}  Rd6 {[%clk 0:01:06]} 23. Bxb4 {[%clk 0:02:08]}  axb4 {[%clk 0:01:06]} 24. Kb2 {[%clk 0:02:08]}  Rc6 {[%clk 0:01:05]} 25. Qd3 {[%clk 0:02:08]}  Qc5 {[%clk 0:01:00]} 26. e4 {[%clk 0:02:03]}  Qa5 {[%clk 0:00:48]} 27. e5 {[%clk 0:02:00]}  Rc3 {[%clk 0:00:47]} 28. Qb5 {[%clk 0:01:53]}  Qxb5 {[%clk 0:00:47]} 29. axb5 {[%clk 0:01:53]}  Be7 {[%clk 0:00:47]} 30. Rh1 {[%clk 0:01:54]}  Ka7 {[%clk 0:00:47]} 31. Rh7 {[%clk 0:01:52]}  g5 {[%clk 0:00:34]} 32. Rxf7 {[%clk 0:01:52]}  g4 {[%clk 0:00:33]} 33. Rxe7 {[%clk 0:01:39]}  gxf3 {[%clk 0:00:33]} 34. gxf3 {[%clk 0:01:40]}  Rxf3 {[%clk 0:00:33]} 35. Rxc7 {[%clk 0:01:41]}  Rxf2+ {[%clk 0:00:33]} 36. Rc2 {[%clk 0:01:42]}  Rf3 {[%clk 0:00:29]} 37. Re2 {[%clk 0:01:30]} 1-0


[Site "https://www.chess.com"]